fUST/lending_fUST_20250506
["ID","MTS","AMOUNT","RATE_DAILY","PERIOD"]
[360084541,1746544241080,-2938.9,0.00019178,2]
[360084543,1746544241090,-403.05136874,0.00019178,2]
[360084545,1746544241099,-400.0,0.00019178,2]
[360084547,1746544241108,-400.0,0.00019178,2]
[360084549,1746544241117,-635.21,0.00019178,2]
[360084551,1746544241127,-400.0,0.00019178,2]
[360084553,1746544241136,-400.0,0.00019178,2]
[360084555,1746544241145,-400.0,0.00019178,2]
[360084557,1746544241154,-401.30935804,0.00019178,2]
[360084559,1746544241164,-410.49782039,0.00019178,2]
[360084561,1746544241173,-400.0,0.00019178,2]
[360084563,1746544241182,-400.0,0.00019178,2]
[360084565,1746544241191,-400.0,0.00019178,2]
[360084567,1746544241200,-400.0,0.00019178,2]
[360084570,1746544241210,-360.81304676,0.00019178,2]
[360084573,1746544241219,-400.0,0.00019178,2]
[360084575,1746544241229,-400.0,0.00019178,2]
[360084577,1746544241238,-503.20484552,0.00019178,2]
[360084579,1746544241247,-667.88,0.00019178,2]
[360084581,1746544241256,-400.0,0.00019178,2]
[360084583,1746544241266,-400.0,0.00019178,2]
[360084585,1746544241275,-400.0,0.00019178,2]
[360084587,1746544241284,-400.0,0.00019178,2]
[360084589,1746544241294,-507.98636629,0.00019178,2]
[360084591,1746544241302,-400.0,0.00019178,2]
[360084593,1746544241313,-400.0,0.00019178,2]
[360084595,1746544241322,-400.0,0.00019178,2]
[360084597,1746544241331,-509.40126263,0.00019178,2]
[360084599,1746544241341,-504.00350299,0.00019178,2]
[360084601,1746544241350,-471.24,0.00019178,2]
[360084603,1746544241359,-415.3774956,0.00019178,2]
[360084605,1746544241369,-400.0,0.00019178,2]
[360084607,1746544241378,-400.0,0.00019178,2]
[360084609,1746544241387,-400.0,0.00019178,2]
[360084611,1746544241396,-408.41553255,0.00019178,2]
[360084613,1746544241406,-400.0,0.00019178,2]
[360084615,1746544241415,-400.0,0.00019178,2]
[360084617,1746544241425,-548.24,0.00019178,2]
[360084619,1746544241434,-749.21,0.00019178,2]
[360084621,1746544241444,-400.0,0.00019178,2]
[360084623,1746544241453,-400.0,0.00019178,2]
[360084625,1746544241463,-408.25513853,0.00019178,2]
[360084627,1746544241473,-272.93224761,0.00019178,2]
[360084629,1746544241482,-400.0,0.00019178,2]
[360084631,1746544241492,-1013.92686173,0.00019178,2]
[360084633,1746544241502,-400.0,0.00019178,2]
[360084635,1746544241511,-402.9905216,0.00019178,2]
[360084637,1746544241521,-1685.44,0.00019178,2]
[360084639,1746544241530,-402.55365641,0.00019178,2]
[360084641,1746544241539,-400.0,0.00019178,2]
[360084643,1746544241550,-413.95268273,0.00019178,2]
[360084645,1746544241561,-400.0,0.00019178,2]
[360084647,1746544241570,-407.28009437,0.00019178,2]
[360084649,1746544241581,-400.0,0.00019178,2]
[360084651,1746544241591,-535.42,0.00019178,2]
[360084653,1746544241604,-400.0,0.00019178,2]
[360084656,1746544241613,-400.0,0.00019178,2]
[360084657,1746544241623,-400.0,0.00019178,2]
[360084659,1746544241632,-540.28,0.00019178,2]
[360084662,1746544241643,-722.62,0.00019178,2]
[360084664,1746544241653,-400.0,0.00019178,2]
[360084665,1746544241663,-400.0,0.00019178,2]
[360084668,1746544241673,-400.0,0.00019178,2]
[360084670,1746544241683,-400.0,0.00019178,2]
[360084672,1746544241692,-403.80119766,0.00019178,2]
[360084673,1746544241702,-400.84686798,0.00019178,2]
[360084676,1746544241711,-400.0,0.00019178,2]
[360084678,1746544241721,-400.0,0.00019178,2]
[360084680,1746544241731,-209.74151803,0.00019178,2]
[360084682,1746544241740,-400.0,0.00019178,2]
[360084683,1746544241750,-400.0,0.00019178,2]
[360084686,1746544241759,-400.0,0.00019178,2]
[360084687,1746544241769,-500.0,0.00019178,2]
[360084690,1746544241779,-1272.7,0.00019178,2]
[360084692,1746544241788,-400.0,0.00019178,2]
[360084694,1746544241798,-402.41187786,0.00019178,2]
[360084696,1746544241808,-400.0,0.00019178,2]
[360084698,1746544241817,-400.0,0.00019178,2]
[360084699,1746544241826,-408.2952987,0.00019178,2]
[360084702,1746544241835,-400.0,0.00019178,2]
[360084704,1746544241845,-545.89502614,0.00019178,2]
[360084706,1746544241855,-561.19,0.00019178,2]
[360084707,1746544241864,-400.0,0.00019178,2]
[360084709,1746544241873,-400.0,0.00019178,2]
[360084711,1746544241882,-414.42574012,0.00019178,2]
[360084713,1746544241892,-724.12,0.00019178,2]
[360084715,1746544241902,-722.94,0.00019178,2]
[360084717,1746544241911,-400.0,0.00019178,2]
[360084719,1746544241920,-400.0,0.00019178,2]
[360084721,1746544241929,-400.95339625,0.00019178,2]
[360084723,1746544241938,-400.0,0.00019178,2]
[360084725,1746544241947,-400.0,0.00019178,2]
[360084727,1746544241957,-1347.53,0.00019178,2]
[360084729,1746544241966,-400.0,0.00019178,2]
[360084731,1746544241975,-400.0,0.00019178,2]
[360084733,1746544241984,-400.0,0.00019178,2]
[360084735,1746544241994,-720.45,0.00019178,2]
[360084737,1746544242003,-504.16376864,0.00019178,2]
[360084739,1746544242012,-405.32755235,0.00019178,2]
[360084741,1746544242021,-400.0,0.00019178,2]
[360084744,1746544242031,-400.0,0.00019178,2]
[360084746,1746544242040,-401.67160681,0.00019178,2]
[360084748,1746544242050,-503.23780717,0.00019178,2]
[360084750,1746544242060,-1242.86,0.00019178,2]
[360084751,1746544242070,-400.0,0.00019178,2]
[360084754,1746544242079,-400.0,0.00019178,2]
[360084755,1746544242089,-5245.91,0.00019178,2]
[360084757,1746544242098,-401.58873496,0.00019178,2]
[360084760,1746544242108,-400.0,0.00019178,2]
[360084762,1746544242118,-400.0,0.00019178,2]
[360084764,1746544242128,-400.0,0.00019178,2]
[360084765,1746544242137,-400.0,0.00019178,2]
[360084766,1746544242146,-400.0,0.00019178,2]
[360084767,1746544242156,-400.0,0.00019178,2]
[360084768,1746544242165,-400.0,0.00019178,2]
[360084769,1746544242175,-516.26450725,0.00019178,2]
[360084770,1746544242185,-400.0,0.00019178,2]
[360084771,1746544242194,-466.68,0.00019178,2]
[360084772,1746544242203,-405.8713486,0.00019178,2]
[360084773,1746544242213,-5728.17,0.00019178,2]
[360084774,1746544242223,-3362.15,0.00019178,2]
[360084775,1746544242232,-415.90034457,0.00019178,2]
[360084776,1746544242242,-400.0,0.00019178,2]
[360084777,1746544242251,-509.57626404,0.00019178,2]
[360084778,1746544242261,-400.0,0.00019178,2]
[360084779,1746544242270,-400.0,0.00019178,2]
[360084780,1746544242280,-1040.11,0.00019178,2]
[360084781,1746544242290,-400.0,0.00019178,2]
[360084782,1746544242300,-401.28888995,0.00019178,2]
[360084784,1746544242310,-400.0,0.00019178,2]
[360084786,1746544242319,-400.0,0.00019178,2]
[360084788,1746544242328,-763.38,0.00019178,2]
[360084790,1746544242338,-400.0,0.00019178,2]
[360084792,1746544242347,-400.0,0.00019178,2]
[360084794,1746544242356,-400.0,0.00019178,2]
[360084796,1746544242365,-400.0,0.00019178,2]
[360084798,1746544242375,-400.0,0.00019178,2]
[360084799,1746544242384,-220.53743959,0.00019178,2]
[360084801,1746544242394,-460.74,0.00019178,2]
[360084804,1746544242403,-400.0,0.00019178,2]
[360084805,1746544242413,-400.0,0.00019178,2]
[360084807,1746544242422,-400.0,0.00019178,2]
[360084809,1746544242431,-513.7459558,0.00019178,2]
[360084811,1746544242440,-400.0,0.00019178,2]
[360084814,1746544242450,-400.0,0.00019178,2]
[360084816,1746544242460,-909.21,0.00019178,2]
[360084818,1746544242470,-291.15370518,0.00019178,2]
[360084819,1746544242479,-400.0,0.00019178,2]
[360084821,1746544242488,-400.0,0.00019178,2]
[360084823,1746544242498,-1589.74,0.00019178,2]
[360084825,1746544242507,-495.61,0.00019178,2]
[360084827,1746544242517,-1582.65,0.00019178,2]
[360084828,1746544242526,-824.41,0.00019178,2]
[360084829,1746544242535,-400.0,0.00019178,2]
[360084830,1746544242545,-1515.05,0.00019178,2]
[360084831,1746544242555,-400.0,0.00019178,2]
[360084832,1746544242567,-400.0,0.00019178,2]
[360084833,1746544242576,-400.0,0.00019178,2]
[360084834,1746544242585,-400.0,0.00019178,2]
[360084835,1746544242597,-403.34010556,0.00019178,2]
[360084836,1746544242610,-400.0,0.00019178,2]
[360084837,1746544242619,-400.0,0.00019178,2]
[360084838,1746544242629,-402.10659483,0.00019178,2]
[360084839,1746544242639,-400.0,0.00019178,2]
[360084840,1746544242648,-1138.87,0.00019178,2]
[360084841,1746544242658,-400.0,0.00019178,2]
[360084842,1746544242668,-502.8703402,0.00019178,2]
[360084843,1746544242678,-400.0,0.00019178,2]
[360084844,1746544242688,-400.0,0.00019178,2]
[360084845,1746544242697,-400.0,0.00019178,2]
[360084846,1746544242707,-406.79252526,0.00019178,2]
[360084847,1746544242716,-420.81417445,0.00019178,2]
[360084848,1746544242726,-300.0,0.00019178,2]
[360084849,1746544242735,-741.85,0.00019178,2]
[360084850,1746544242745,-741.85,0.00019178,2]
[360084851,1746544242755,-741.85,0.00019178,2]
[360084852,1746544242764,-741.85,0.00019178,2]
[360084853,1746544242775,-400.0,0.00019178,2]
[360084854,1746544242785,-741.85,0.00019178,2]
[360084855,1746544242794,-741.85,0.00019178,2]
[360084856,1746544242804,-741.85,0.00019178,2]
[360084857,1746544242816,-741.85,0.00019178,2]
[360084858,1746544242825,-741.85,0.00019178,2]
[360084859,1746544242835,-741.85,0.00019178,2]
[360084861,1746544242844,-741.85,0.00019178,2]
[360084862,1746544242853,-741.85,0.00019178,2]
[360084863,1746544242862,-741.85,0.00019178,2]
[360084864,1746544242873,-741.85,0.00019178,2]
[360084865,1746544242884,-741.85,0.00019178,2]
[360084866,1746544242893,-741.85,0.00019178,2]
[360084867,1746544242903,-741.85,0.00019178,2]
[360084868,1746544242913,-741.85,0.00019178,2]
[360084869,1746544242922,-741.85,0.00019178,2]
[360084871,1746544242932,-400.0,0.00019178,2]
[360084897,1746544243073,-741.85,0.00019178,2]
[360084901,1746544243083,-741.85,0.00019178,2]
[360084905,1746544243093,-741.85,0.00019178,2]
[360084909,1746544243103,-400.0,0.00019178,2]
[360084912,1746544243112,-741.85,0.00019178,2]
[360084914,1746544243121,-741.99484471,0.00019178,2]
[360084915,1746544243130,-400.0,0.00019178,2]
[360084917,1746544243141,-962.27,0.00019178,2]
[360084920,1746544243151,-476.14,0.00019178,2]
[360084922,1746544243160,-400.0,0.00019178,2]
[360084924,1746544243170,-400.0,0.00019178,2]
[360084926,1746544243179,-403.89954191,0.00019178,2]
[360084928,1746544243189,-400.0,0.00019178,2]
[360084929,1746544243198,-502.1374089,0.00019178,2]
[360084932,1746544243208,-400.0,0.00019178,2]
[360084933,1746544243218,-500.0,0.00019178,2]
[360084935,1746544243227,-400.0,0.00019178,2]
[360084938,1746544243237,-500.0,0.00019178,2]
[360084940,1746544243247,-500.0,0.00019178,2]
[360084942,1746544243257,-400.0,0.00019178,2]
[360084944,1746544243266,-314.86694994,0.00019178,2]
[360084946,1746544243276,-502.34032409,0.00019178,2]
[360084948,1746544243285,-795.13,0.00019178,2]
[360084950,1746544243294,-401.42416385,0.00019178,2]
[360084952,1746544243304,-474.27,0.00019178,2]
[360084953,1746544243314,-449.36,0.00019178,2]
[360084955,1746544243323,-400.0,0.00019178,2]
[360084958,1746544243334,-400.0,0.00019178,2]
[360084960,1746544243343,-1843.46,0.00019178,2]
[360084962,1746544243352,-153.94588979,0.00019178,2]
[360084964,1746544243362,-505.15,0.00019178,2]
[360084965,1746544243372,-400.0,0.00019178,2]
[360084968,1746544243382,-400.0,0.00019178,2]
[360084969,1746544243391,-716.55,0.00019178,2]
[360084972,1746544243401,-400.0,0.00019178,2]
[360084973,1746544243411,-501.97207744,0.00019178,2]
[360084976,1746544243420,-1192.46,0.00019178,2]
[360084978,1746544243430,-400.0,0.00019178,2]
[360084979,1746544243440,-400.0,0.00019178,2]
[360084981,1746544243449,-500.0,0.00019178,2]
[360084983,1746544243459,-473.40339252,0.00019178,2]
[360084985,1746544243468,-400.0,0.00019178,2]
[360084987,1746544243478,-507.82,0.00019178,2]
[360084989,1746544243488,-400.0,0.00019178,2]
[360084991,1746544243498,-400.0,0.00019178,2]
[360084994,1746544243508,-400.0,0.00019178,2]
[360084996,1746544243517,-500.0,0.00019178,2]
[360084998,1746544243527,-403.34072284,0.00019178,2]
[360085000,1746544243537,-433.81,0.00019178,2]
[360085002,1746544243546,-384.58497593,0.00019178,2]
[360085004,1746544243556,-407.33338974,0.00019178,2]
[360085006,1746544243567,-400.0,0.00019178,2]
[360085007,1746544243576,-400.0,0.00019178,2]
[360085009,1746544243586,-692.67,0.00019178,2]
[360085011,1746544243597,-400.0,0.00019178,2]
[360085012,1746544243608,-400.0,0.00019178,2]
[360085013,1746544243618,-502.79430711,0.00019178,2]
[360085014,1746544243628,-400.0,0.00019178,2]
[360085015,1746544243639,-400.0,0.00019178,2]
[360085016,1746544243649,-402.94644609,0.00019178,2]
[360085017,1746544243659,-400.0,0.00019178,2]
[360085018,1746544243668,-400.0,0.00019178,2]
[360085019,1746544243679,-400.0,0.00019178,2]
[360085020,1746544243689,-503.78798685,0.00019178,2]
[360085021,1746544243699,-209.64157535,0.00019178,2]
[360085022,1746544243708,-500.0,0.00019178,2]
[360085023,1746544243718,-400.0,0.00019178,2]
[360085024,1746544243727,-2659.17,0.00019178,2]
[360085026,1746544243737,-400.0,0.00019178,2]
[360085028,1746544243746,-400.0,0.00019178,2]
[360085030,1746544243756,-400.0,0.00019178,2]
[360085032,1746544243765,-400.0,0.00019178,2]
[360085034,1746544243775,-400.0,0.00019178,2]
[360085036,1746544243784,-400.0,0.00019178,2]
[360085038,1746544243793,-400.0,0.00019178,2]
[360085040,1746544243802,-257.3214084,0.00019178,2]
[360085042,1746544243813,-504.90921476,0.00019178,2]
[360085044,1746544243823,-400.0,0.00019178,2]
[360085046,1746544243833,-554.91,0.00019178,2]
[360085048,1746544243843,-400.0,0.00019178,2]
[360085050,1746544243852,-400.0,0.00019178,2]
[360085052,1746544243861,-400.0,0.00019178,2]
[360085054,1746544243871,-632.35,0.00019178,2]
[360085056,1746544243880,-400.0,0.00019178,2]
[360085058,1746544243889,-400.0,0.00019178,2]
[360085060,1746544243898,-503.10174603,0.00019178,2]
[360085062,1746544243908,-400.0,0.00019178,2]
[360085064,1746544243917,-400.0,0.00019178,2]
[360085066,1746544243926,-400.0,0.00019178,2]
[360085068,1746544243935,-400.0,0.00019178,2]
[360085070,1746544243944,-314.27679483,0.00019178,2]
[360085072,1746544243953,-1117.42,0.00019178,2]
[360085074,1746544243963,-2621.11,0.00019178,2]
[360085076,1746544243972,-502.65057498,0.00019178,2]
[360085078,1746544243981,-400.0,0.00019178,2]
[360085080,1746544243991,-503.55866188,0.00019178,2]
[360085082,1746544244000,-400.0,0.00019178,2]
[360085084,1746544244010,-400.0,0.00019178,2]
[360085086,1746544244019,-2483.5,0.00019178,2]
[360085088,1746544244029,-405.72679758,0.00019178,2]
[360085090,1746544244038,-400.0,0.00019178,2]
[360085092,1746544244047,-400.0,0.00019178,2]
[360085095,1746544244057,-401.97286654,0.00019178,2]
[360085097,1746544244066,-500.0,0.00019178,2]
[360085098,1746544244076,-411.47,0.00019178,2]
[360085101,1746544244086,-400.0,0.00019178,2]
[360085102,1746544244095,-400.0,0.00019178,2]
[360085105,1746544244104,-400.0,0.00019178,2]
[360085107,1746544244114,-400.0,0.00019178,2]
[360085109,1746544244124,-400.0,0.00019178,2]
[360085111,1746544244134,-400.0,0.00019178,2]
[360085113,1746544244143,-400.0,0.00019178,2]
[360085115,1746544244153,-400.0,0.00019178,2]
[360085117,1746544244163,-503.62485783,0.00019178,2]
[360085119,1746544244173,-400.0,0.00019178,2]
[360085121,1746544244182,-405.98412562,0.00019178,2]
[360085123,1746544244192,-151.72849342,0.00019178,2]
[360085125,1746544244201,-400.0,0.00019178,2]
[360085127,1746544244210,-400.76641592,0.00019178,2]
[360085129,1746544244220,-400.0,0.00019178,2]
[360085131,1746544244229,-771.76,0.00019178,2]
[360085133,1746544244239,-400.0,0.00019178,2]
[360085135,1746544244249,-400.0,0.00019178,2]
[360085137,1746544244259,-1986.4,0.00019178,2]
[360085139,1746544244268,-400.0,0.00019178,2]
[360085141,1746544244278,-400.0,0.00019178,2]
[360085142,1746544244287,-277.83555201,0.00019178,2]
[360085145,1746544244297,-400.0,0.00019178,2]
[360085146,1746544244306,-400.0,0.00019178,2]
[360085148,1746544244317,-400.0,0.00019178,2]
[360085150,1746544244327,-400.0,0.00019178,2]
[360085153,1746544244337,-546.93,0.00019178,2]
[360085155,1746544244347,-1322.84,0.00019178,2]
[360085157,1746544244356,-403.97133091,0.00019178,2]
[360085159,1746544244366,-707.73,0.00019178,2]
[360085161,1746544244375,-2391.06,0.00019178,2]
[360085163,1746544244385,-400.0,0.00019178,2]
[360085165,1746544244394,-1682.92,0.00019178,2]
[360085167,1746544244403,-401.0693151,0.00019178,2]
[360085169,1746544244412,-400.0,0.00019178,2]
[360085171,1746544244422,-1801.0,0.00019178,2]
[360085173,1746544244432,-400.0,0.00019178,2]
[360085175,1746544244443,-400.0,0.00019178,2]
[360085177,1746544244452,-2406.39,0.00019178,2]
[360085179,1746544244461,-2020.67,0.00019178,2]
[360085181,1746544244471,-404.18475722,0.00019178,2]
[360085183,1746544244480,-400.0,0.00019178,2]
[360085185,1746544244489,-400.0,0.00019178,2]
[360085187,1746544244499,-400.0,0.00019178,2]
[360085189,1746544244508,-643.79,0.00019178,2]
[360085191,1746544244518,-400.0,0.00019178,2]
[360085193,1746544244527,-777.59,0.00019178,2]
[360085195,1746544244537,-400.0,0.00019178,2]
[360085197,1746544244546,-400.0,0.00019178,2]
[360085199,1746544244555,-400.0,0.00019178,2]
[360085201,1746544244566,-403.25345902,0.00019178,2]
[360085203,1746544244576,-400.0,0.00019178,2]
[360085205,1746544244586,-207.46873216,0.00019178,2]
[360085207,1746544244597,-400.0,0.00019178,2]
[360085209,1746544244607,-400.0,0.00019178,2]
[360085211,1746544244617,-626.81,0.00019178,2]
[360085213,1746544244627,-400.0,0.00019178,2]
[360085215,1746544244638,-1938.79,0.00019178,2]
[360085217,1746544244648,-400.0,0.00019178,2]
[360085219,1746544244658,-500.0,0.00019178,2]
[360085221,1746544244669,-400.0,0.00019178,2]
[360085223,1746544244679,-400.0,0.00019178,2]
[360085225,1746544244689,-400.0,0.00019178,2]
[360085227,1746544244698,-1874.49,0.00019178,2]
[360085229,1746544244708,-7780.86,0.00019178,2]
[360085231,1746544244718,-400.0,0.00019178,2]
[360085233,1746544244727,-406.30028752,0.00019178,2]
[360085235,1746544244737,-2254.63,0.00019178,2]
[360085237,1746544244747,-2254.63,0.00019178,2]
[360085239,1746544244756,-2254.63,0.00019178,2]
[360085241,1746544244765,-2254.63,0.00019178,2]
[360085243,1746544244775,-3771.53,0.00019178,2]
[360085246,1746544244785,-2254.63,0.00019178,2]
[360085247,1746544244795,-2254.63,0.00019178,2]
[360085249,1746544244804,-1387.4,0.00019178,2]
[360085252,1746544244814,-2254.63,0.00019178,2]
[360085253,1746544244824,-2254.63,0.00019178,2]
[360085256,1746544244834,-2254.63,0.00019178,2]
[360085258,1746544244844,-2254.63,0.00019178,2]
[360085260,1746544244854,-2254.63,0.00019178,2]
[360085262,1746544244863,-2254.63,0.00019178,2]
[360085264,1746544244873,-2254.63,0.00019178,2]
[360085266,1746544244882,-2254.63,0.00019178,2]
[360085267,1746544244892,-403.72300293,0.00019178,2]
[360085270,1746544244902,-2254.63,0.00019178,2]
[360085272,1746544244911,-2254.63,0.00019178,2]
[360085274,1746544244923,-2254.63,0.00019178,2]
[360085275,1746544244932,-2254.63,0.00019178,2]
[360085277,1746544244941,-2254.63,0.00019178,2]
[360085279,1746544244951,-2254.63,0.00019178,2]
[360085281,1746544244960,-2254.63,0.00019178,2]
[360085283,1746544244970,-2254.63,0.00019178,2]
[360085285,1746544244980,-2254.63,0.00019178,2]
[360085287,1746544244989,-2254.63,0.00019178,2]
[360085290,1746544244999,-400.0,0.00019178,2]
[360085292,1746544245009,-404.37927752,0.00019178,2]
[360085294,1746544245019,-400.0,0.00019178,2]
[360085296,1746544245028,-400.0,0.00019178,2]
[360085298,1746544245037,-400.0,0.00019178,2]
[360085300,1746544245047,-400.0,0.00019178,2]
[360085302,1746544245056,-401.96524849,0.00019178,2]
[360085304,1746544245066,-400.0,0.00019178,2]
[360085306,1746544245076,-417.69,0.00019178,2]
[360085308,1746544245085,-400.0,0.00019178,2]
[360085310,1746544245094,-400.0,0.00019178,2]
[360085312,1746544245103,-510.88,0.00019178,2]
[360085314,1746544245113,-407.394944,0.00019178,2]
[360085316,1746544245123,-400.0,0.00019178,2]
[360085318,1746544245132,-404.73978031,0.00019178,2]
[360085320,1746544245142,-403.58495225,0.00019178,2]
[360085322,1746544245151,-400.0,0.00019178,2]
[360085324,1746544245160,-503.5525166,0.00019178,2]
[360085326,1746544245170,-400.0,0.00019178,2]
[360085328,1746544245179,-402.30043803,0.00019178,2]
[360085330,1746544245190,-500.0,0.00019178,2]
[360085332,1746544245200,-400.0,0.00019178,2]
[360085334,1746544245209,-400.0,0.00019178,2]
[360085336,1746544245218,-402.71098712,0.00019178,2]
[360085338,1746544245228,-411.64,0.00019178,2]
[360085340,1746544245237,-400.0,0.00019178,2]
[360085342,1746544245247,-9064.12,0.00019178,2]
[360085344,1746544245257,-410.33386623,0.00019178,2]
[360085346,1746544245266,-400.0,0.00019178,2]
[360085348,1746544245275,-400.0,0.00019178,2]
[360085350,1746544245285,-500.0,0.00019178,2]
[360085352,1746544245295,-500.0,0.00019178,2]
[360085354,1746544245304,-500.0,0.00019178,2]
[360085356,1746544245314,-500.0,0.00019178,2]
[360085358,1746544245323,-500.0,0.00019178,2]
[360085360,1746544245333,-500.0,0.00019178,2]
[360085362,1746544245342,-500.0,0.00019178,2]
[360085364,1746544245351,-500.0,0.00019178,2]
[360085366,1746544245361,-500.0,0.00019178,2]
[360085368,1746544245370,-500.0,0.00019178,2]
[360085369,1746544245380,-500.0,0.00019178,2]
[360085370,1746544245389,-500.0,0.00019178,2]
[360085371,1746544245398,-546.37379421,0.00019178,2]
[360085372,1746544245408,-500.0,0.00019178,2]
[360085373,1746544245417,-500.0,0.00019178,2]
[360085374,1746544245427,-500.0,0.00019178,2]
[360085375,1746544245475,-500.0,0.00019178,2]
[360085376,1746544245486,-500.0,0.00019178,2]
[360085377,1746544245496,-500.0,0.00019178,2]
[360085378,1746544245505,-500.0,0.00019178,2]
[360085379,1746544245516,-500.0,0.00019178,2]
[360085380,1746544245526,-844.48,0.00019178,2]
[360085381,1746544245536,-506.65,0.00019178,2]
[360085383,1746544245545,-400.0,0.00019178,2]
[360085385,1746544245555,-233.76033808,0.00019178,2]
[360085387,1746544245564,-1257.59,0.00019178,2]
[360085388,1746544245573,-208.10094571,0.00019178,2]
[360085389,1746544245583,-400.0,0.00019178,2]
[360085390,1746544245592,-400.0,0.00019178,2]
[360085391,1746544245607,-163.4935406,0.00019178,2]
[360085392,1746544245617,-205.50026287,0.00019178,2]
[360085393,1746544245626,-405.51,0.00019178,2]
[360085394,1746544245636,-400.0,0.00019178,2]
[360085395,1746544245648,-919.75,0.00019178,2]
[360085396,1746544245658,-365.92022932,0.00019178,2]
[360085397,1746544245667,-400.0,0.00019178,2]
[360085398,1746544245678,-400.0,0.00019178,2]
[360085399,1746544245688,-153.2741125,0.00019178,2]
[360085400,1746544245697,-400.0,0.00019178,2]
[360085401,1746544245707,-400.0,0.00019178,2]
[360085402,1746544245717,-1344.17,0.00019178,2]
[360085403,1746544245726,-3088.97,0.00019178,2]
[360085404,1746544245736,-1060.16,0.00019178,2]
[360085405,1746544245746,-400.0,0.00019178,2]
[360085406,1746544245755,-407.36300052,0.00019178,2]
[360085407,1746544245765,-401.59505143,0.00019178,2]
[360085408,1746544245774,-506.19767012,0.00019178,2]
[360085409,1746544245784,-611.34,0.00019178,2]
[360085410,1746544245793,-401.61499065,0.00019178,2]
[360085411,1746544245802,-400.0,0.00019178,2]
[360085412,1746544245813,-400.0,0.00019178,2]
[360085413,1746544245822,-2462.55,0.00019178,2]
[360085415,1746544245832,-403.43878694,0.00019178,2]
[360085417,1746544245841,-402.30534856,0.00019178,2]
[360085419,1746544245850,-403.16813055,0.00019178,2]
[360085421,1746544245860,-833.12,0.00019178,2]
[360085423,1746544245869,-18541.14,0.00019178,2]
[360085425,1746544245879,-400.0,0.00019178,2]
[360085427,1746544245888,-400.0,0.00019178,2]
[360085429,1746544245898,-884.07,0.00019178,2]
[360085431,1746544245907,-400.0,0.00019178,2]
[360085433,1746544245917,-1796.34,0.00019178,2]
[360085435,1746544245926,-400.0,0.00019178,2]
[360085437,1746544245936,-400.0,0.00019178,2]
[360085439,1746544245945,-400.0,0.00019178,2]
[360085443,1746544245955,-400.0,0.00019178,2]
[360085445,1746544245964,-3622.27,0.00019178,2]
[360085447,1746544245972,-400.0,0.00019178,2]
[360085449,1746544245981,-454.11968997,0.00019178,2]
[360085451,1746544245990,-2768.75,0.00019178,2]
[360085453,1746544245999,-400.0,0.00019178,2]
[360085455,1746544246009,-798.68,0.00019178,2]
[360085457,1746544246017,-400.0,0.00019178,2]
[360085459,1746544246027,-234.1504007,0.00019178,2]
[360085461,1746544246036,-400.0,0.00019178,2]
[360085463,1746544246045,-857.93,0.00019178,2]
[360085465,1746544246054,-400.0,0.00019178,2]